bitfinex/quotes_SOLUSD_20241216
["timestamp","ask_amount","ask_price","bid_price","bid_amount"]
[1734370465193,10.5022951,219.53,219.45,139.4002]
[1734370465398,10.5022951,219.54,219.46,138.58323147]
[1734370465631,10.5022951,219.54,219.46,137.9]
[1734370465943,10.5022951,219.54,219.47,0.68320825]
[1734370466633,10.5022951,219.55,219.47,138.58320825]
[1734370466812,10.5022951,219.56,219.5,20.0]
[1734370468141,10.5022951,219.55,219.5,20.0]
[1734370468488,10.5022951,219.52,219.48,20.0]
[1734370468603,10.5022951,219.53,219.48,20.0]
[1734370469202,10.5022951,219.55,219.48,20.0]
[1734370469408,10.5022951,219.57,219.48,20.0]
[1734370469721,10.5022951,219.55,219.48,20.0]
[1734370469907,10.5022951,219.56,219.48,20.0]
[1734370470437,10.5022951,219.57,219.48,20.0]
[1734370470659,10.5022951,219.56,219.48,20.0]
[1734370471139,10.5022951,219.57,219.48,20.0]
[1734370471454,10.5022951,219.57,219.45,139.4002]
[1734370471455,10.5022951,219.6,219.52,20.0]
[1734370473364,0.12549,219.6,219.52,20.0]
[1734370473568,10.5022951,219.6,219.52,20.0]
[1734370474125,23.902374,219.62,219.52,20.0]
[1734370474321,10.5022951,219.61,219.52,20.0]
[1734370475022,10.5022951,219.6,219.52,20.0]
[1734370475993,10.5022951,219.61,219.53,0.68312005]
[1734370476138,10.5022951,219.61,219.51,0.68309309]
[1734370477021,10.5022951,219.58,219.48,157.9]
[1734370477337,0.12549,219.62,219.48,20.0]
[1734370477338,10.5022951,219.56,219.48,20.0]
[1734370477532,10.5022951,219.57,219.48,20.0]
[1734370478436,0.12549,219.57,219.49,0.68319485]
[1734370478623,10.6277851,219.57,219.48,20.0]
[1734370478822,10.6277851,219.57,219.48,20.68322927]
[1734370479047,10.5022951,219.58,219.48,20.68322927]
[1734370479240,10.5022951,219.59,219.48,20.68322927]
[1734370479438,10.5022951,219.6,219.48,20.68322927]
[1734370479857,1.5886,219.63,219.48,158.58322927]
[1734370480060,10.5022951,219.62,219.52,20.0]
[1734370480258,10.5022951,219.62,219.53,138.58301029]
[1734370480461,10.5022951,219.64,219.56,20.0]
[1734370481255,10.5022951,219.66,219.57,0.68296208]
[1734370481561,10.5022951,219.64,219.54,137.9]
[1734370481951,10.5022951,219.61,219.54,20.0]
[1734370482157,10.5022951,219.61,219.53,1.5253]
[1734370482354,10.5022951,219.6,219.53,1.5253]
[1734370482853,10.5022951,219.61,219.53,1.5253]
[1734370483560,10.5022951,219.6,219.53,1.5253]
[1734370484454,10.5022951,219.6,219.54,20.0]
[1734370484943,10.5022951,219.57,219.51,20.0]
[1734370485263,10.5022951,219.56,219.48,139.4852]
[1734370485477,10.5022951,219.56,219.48,1.5852]
[1734370485650,10.5022951,219.55,219.48,1.5852]
[1734370486166,10.5022951,219.54,219.48,1.5852]
[1734370486355,10.5022951,219.54,219.45,144.2484]
[1734370486550,10.5022951,219.53,219.45,137.9]
[1734370487777,10.5022951,219.52,219.45,137.9]
[1734370487954,10.5022951,219.52,219.43,139.4852]
[1734370488148,10.5022951,219.52,219.46,20.0]
[1734370488777,10.5022951,219.51,219.46,20.0]
[1734370489149,23.902374,219.59,219.46,20.0]
[1734370489351,10.5022951,219.52,219.46,20.0]
[1734370490166,25.72251494,219.59,219.47,0.68334424]
[1734370490373,1.82014094,219.59,219.47,0.68334424]
[1734370490558,10.6277851,219.56,219.47,0.68334424]
[1734370490880,10.6277851,219.56,219.46,20.0]
[1734370491097,0.12549,219.56,219.47,0.6832727]
[1734370491296,10.5022951,219.58,219.47,0.6832727]
[1734370491587,0.12549,219.57,219.47,0.6832727]
[1734370492365,10.5022951,219.55,219.47,0.6832727]
[1734370492576,10.5022951,219.56,219.47,0.6832727]
[1734370492785,0.12549,219.56,219.47,0.6832727]
[1734370493095,10.5022951,219.58,219.47,0.6832727]
[1734370493253,10.5022951,219.59,219.5,20.0]
[1734370493455,0.12549,219.58,219.5,20.0]
[1734370493878,10.5022951,219.58,219.48,0.68313952]
[1734370494052,1.5355,219.6,219.5,20.0]
[1734370494053,10.5022951,219.57,219.5,20.0]
[1734370495364,10.5022951,219.58,219.5,20.0]
[1734370495561,10.5022951,219.61,219.51,0.68316401]
[1734370495780,10.5022951,219.6,219.51,138.58316401]
[1734370496055,10.5022951,219.58,219.51,137.9]
[1734370496453,0.12549,219.58,219.51,137.9]
[1734370496655,10.6277851,219.58,219.51,137.9]
[1734370498657,10.5022951,219.57,219.51,137.9]
[1734370499185,0.12549,219.56,219.46,20.0]
[1734370499356,10.5022951,219.55,219.47,0.68324977]
[1734370499551,10.6277851,219.56,219.47,0.68324977]
[1734370499962,25.5634939,219.62,219.47,138.58324977]
[1734370499963,10.5022951,219.57,219.47,138.58324977]
[1734370500181,10.5022951,219.57,219.47,137.9]
[1734370500391,10.5022951,219.57,219.48,138.58314563]
[1734370500589,10.5022951,219.57,219.48,137.9]
[1734370503757,10.5022951,219.57,219.49,0.68317663]
[1734370503961,10.5022951,219.6,219.49,144.68557663]
[1734370504186,10.5022951,219.6,219.49,144.0024]
[1734370504388,7.12108259,219.66,219.51,1.5657]
[1734370504597,10.5022951,219.58,219.51,1.5657]
[1734370504964,10.5022951,219.59,219.52,20.0]
[1734370505162,10.5022951,219.6,219.52,20.0]
[1734370505895,10.5022951,219.59,219.52,20.0]
[1734370506074,10.5022951,219.57,219.52,20.0]
[1734370506760,10.5022951,219.56,219.51,1.5657]
[1734370507389,10.5022951,219.56,219.49,6.1024]
[1734370507593,31.02345659,219.64,219.49,6.78560837]
[1734370507594,10.5022951,219.6,219.49,6.78560837]
[1734370507768,10.5022951,219.63,219.52,20.0]
[1734370507964,10.5022951,219.64,219.53,0.68300927]
[1734370508179,10.5022951,219.63,219.53,0.68300927]
[1734370508498,10.5022951,219.64,219.53,0.68300927]
[1734370508702,10.5022951,219.63,219.53,0.68300927]
[1734370509072,10.5022951,219.63,219.54,139.5302]
[1734370509264,10.5022951,219.63,219.55,0.6829743]
[1734370509596,10.5022951,219.65,219.58,20.0]
[1734370511294,10.5022951,219.66,219.58,20.0]
[1734370511502,8.91817704,219.72,219.59,0.68289373]
[1734370511802,10.5022951,219.67,219.58,163.9783]
[1734370513079,10.5022951,219.67,219.59,0.6828208]
[1734370513995,10.5022951,219.67,219.58,163.9783]
[1734370514519,10.5022951,219.68,219.58,163.9783]
[1734370514690,10.5022951,219.67,219.58,163.9783]
[1734370515205,10.5022951,219.69,219.59,0.68282922]
[1734370515512,10.5022951,219.68,219.62,20.0]
[1734370516215,23.902374,219.73,219.62,158.58278705]
[1734370516511,10.5022951,219.7,219.62,159.4737]
[1734370516812,10.5022951,219.69,219.62,159.4737]
[1734370517122,10.5022951,219.7,219.62,159.4737]
[1734370518533,10.5022951,219.69,219.63,0.68273836]
[1734370519016,10.5022951,219.68,219.63,0.68273836]
[1734370519221,0.12549,219.73,219.61,20.0]
[1734370519222,10.5022951,219.65,219.61,20.0]
[1734370519532,10.5022951,219.64,219.61,20.0]
[1734370519821,10.5022951,219.66,219.61,20.0]
[1734370520026,10.5022951,219.67,219.61,20.0]
[1734370520314,10.5022951,219.66,219.61,20.0]
[1734370520521,10.5022951,219.66,219.62,20.0]
[1734370521207,10.5022951,219.67,219.62,20.0]
[1734370521608,10.5022951,219.68,219.62,20.0]
[1734370521811,1.643,219.75,219.63,20.0]
[1734370521992,10.5022951,219.71,219.63,0.68280123]
[1734370522414,10.5022951,219.7,219.63,0.68280123]
[1734370523123,10.5022951,219.69,219.63,0.68280123]
[1734370523629,10.5022951,219.7,219.63,0.68280123]
[1734370524852,10.5022951,219.7,219.63,138.58280123]
[1734370525056,10.5022951,219.7,219.63,137.9]
[1734370525223,10.5022951,219.69,219.63,137.9]
[1734370525428,10.5022951,219.68,219.61,20.0]
[1734370525632,10.5022951,219.67,219.62,20.0]
[1734370527228,10.5022951,219.65,219.63,20.0]
[1734370528329,10.5022951,219.64,219.61,20.0]
[1734370529523,10.5022951,219.63,219.61,20.0]
[1734370530356,10.5022951,219.62,219.6,20.0]
[1734370530765,10.5022951,219.63,219.6,20.0]
[1734370531254,20.0,219.74,219.61,157.9]
[1734370531429,10.5022951,219.67,219.61,157.9]
[1734370531626,10.5022951,219.62,219.6,20.0]
[1734370531959,10.5022951,219.63,219.6,20.0]
[1734370532469,10.5022951,219.62,219.6,20.0]
[1734370532880,10.5022951,219.64,219.6,20.0]
[1734370533080,10.5022951,219.63,219.6,20.0]
[1734370533279,10.5022951,219.62,219.6,20.0]
[1734370533446,10.5022951,219.61,219.6,20.0]
[1734370533959,10.5022951,219.61,219.57,1.5547]
[1734370534474,10.5022951,219.61,219.57,21.5547]
[1734370534772,10.5022951,219.58,219.53,144.3188]
[1734370534979,0.12549,219.66,219.51,139.4417]
[1734370534980,10.5022951,219.56,219.51,139.4417]
[1734370535180,10.5022951,219.55,219.51,139.4417]
[1734370535965,10.5022951,219.54,219.48,144.1253]
[1734370536977,10.5022951,219.55,219.49,0.68316479]
[1734370537164,10.5022951,219.55,219.51,20.0]
[1734370537656,10.5022951,219.54,219.51,20.0]
[1734370538054,10.5022951,219.55,219.51,20.0]
[1734370539045,10.5022951,219.58,219.52,20.0]
[1734370539971,1.79063497,219.66,219.52,157.9]
[1734370540171,10.5022951,219.58,219.52,157.9]
[1734370540375,10.5022951,219.57,219.52,157.9]
[1734370541275,10.5022951,219.58,219.52,157.9]
[1734370542874,48.06336401,219.67,219.56,20.0]
[1734370542875,10.5022951,219.64,219.56,20.0]
[1734370543085,1.5051,219.67,219.56,20.0]
[1734370543086,10.5022951,219.65,219.56,20.68294582]
[1734370543769,10.6277851,219.64,219.56,20.68294582]
[1734370543965,10.5022951,219.63,219.56,20.68294582]
[1734370544686,10.5022951,219.64,219.56,20.68294582]
[1734370544989,10.5022951,219.63,219.56,20.68294582]
[1734370545154,10.5022951,219.64,219.56,20.68294582]
[1734370547087,10.5022951,219.57,219.48,144.1253]
[1734370547275,10.5022951,219.55,219.45,139.4967]
[1734370547589,0.12549,219.62,219.45,139.4967]
[1734370547590,10.5022951,219.56,219.46,0.68324027]
[1734370547956,10.5022951,219.55,219.46,137.9]
[1734370548283,10.5022951,219.54,219.46,137.9]
[1734370548690,10.5022951,219.55,219.46,137.9]
[1734370549592,10.5022951,219.55,219.49,20.0]
[1734370550487,23.902374,219.58,219.49,20.0]
[1734370550488,10.5022951,219.56,219.49,20.0]
[1734370550792,6.2286,219.61,219.5,20.0]
[1734370550793,8.04782563,219.61,219.5,20.0]
[1734370551127,34.2791791,219.6,219.5,20.0]
[1734370551598,6.6184,219.67,219.55,20.0]
[1734370551894,10.5022951,219.64,219.55,20.0]
[1734370552090,1.5023,219.69,219.59,20.0]
[1734370552384,10.5022951,219.68,219.59,20.68287048]
[1734370553293,10.5022951,219.68,219.59,158.58287048]
[1734370553595,10.5022951,219.68,219.59,157.9]
[1734370553775,10.5022951,219.65,219.59,157.9]
[1734370553963,16.39676935,219.65,219.59,157.9]
[1734370554166,16.39676935,219.64,219.59,157.9]
[1734370554774,16.39676935,219.65,219.59,157.9]
[1734370555190,23.902374,219.7,219.59,157.9]
[1734370555376,16.39676935,219.65,219.59,157.9]
[1734370555774,16.39676935,219.64,219.6,0.68284631]
[1734370555979,16.39676935,219.65,219.6,0.68284631]
[1734370557879,16.39676935,219.65,219.59,157.9]
[1734370558304,16.39676935,219.64,219.59,157.9]
[1734370558675,16.39676935,219.65,219.6,0.68285133]
[1734370558881,16.39676935,219.65,219.59,157.9]
[1734370559084,16.39676935,219.64,219.59,157.9]
[1734370559403,16.39676935,219.63,219.59,157.9]
[1734370559907,16.39676935,219.64,219.59,157.9]
[1734370560283,16.39676935,219.63,219.59,157.9]
[1734370560808,16.39676935,219.64,219.59,157.9]
[1734370561580,16.39676935,219.69,219.6,138.58284177]
[1734370561804,16.39676935,219.68,219.63,157.9]
[1734370562009,16.39676935,219.67,219.63,157.9]
[1734370562916,16.39676935,219.64,219.57,157.9]
[1734370563502,16.39676935,219.64,219.61,20.0]
[1734370567620,16.39676935,219.67,219.61,20.0]
[1734370567827,16.39676935,219.65,219.61,20.0]
[1734370568631,16.39676935,219.66,219.61,20.0]
[1734370569125,0.12549,219.73,219.62,20.0]
[1734370569299,16.39676935,219.7,219.63,20.0]
[1734370569497,16.39676935,219.68,219.65,20.0]
[1734370569688,16.39676935,219.67,219.65,20.0]
[1734370570125,16.39676935,219.67,219.62,137.9]
[1734370570398,16.39676935,219.68,219.65,20.0]
[1734370572599,16.39676935,219.69,219.65,20.0]
[1734370573497,16.39676935,219.68,219.65,20.0]
[1734370574336,10.49174544,219.68,219.65,20.0]
[1734370575520,10.49174544,219.66,219.63,20.0]
[1734370575825,10.49174544,219.65,219.63,20.0]
[1734370575994,23.902374,219.73,219.63,20.0]
[1734370576197,10.49174544,219.68,219.63,20.0]
[1734370576435,10.49174544,219.66,219.63,20.0]
[1734370578016,10.49174544,219.64,219.6,137.9]
[1734370578217,10.49174544,219.62,219.55,144.0553]
[1734370578420,23.902374,219.73,219.55,144.0553]
[1734370578421,10.49174544,219.61,219.55,144.0553]
[1734370579528,10.49174544,219.61,219.58,20.0]
[1734370581544,10.49174544,219.59,219.54,139.5422]
[1734370581723,10.49174544,219.58,219.52,137.9]
[1734370582228,10.49174544,219.59,219.52,137.9]
[1734370582731,10.49174544,219.59,219.5,6.3978]
[1734370582732,10.49174544,219.57,219.5,144.2978]
[1734370583166,10.49174544,219.58,219.53,20.0]
[1734370583637,10.49174544,219.58,219.51,0.68310286]
[1734370583831,10.49174544,219.58,219.53,20.0]
[1734370584732,10.49174544,219.55,219.51,137.9]
[1734370584925,10.49174544,219.55,219.48,1.5466]
[1734370584926,10.49174544,219.55,219.48,139.4466]
[1734370585538,8.04484734,219.66,219.48,139.4466]
[1734370585539,10.49174544,219.56,219.48,139.4466]
[1734370585750,10.49174544,219.57,219.48,139.4466]
[1734370587356,1.634,219.67,219.52,43.776884]
[1734370587547,10.49174544,219.64,219.56,20.0]
[1734370587749,10.49174544,219.65,219.57,0.68291574]
[1734370588060,10.49174544,219.62,219.56,157.9]
[1734370589265,10.49174544,219.63,219.56,157.9]
[1734370589751,10.49174544,219.63,219.57,0.68294491]
[1734370589954,10.49174544,219.62,219.57,0.68294491]
[1734370590461,10.49174544,219.63,219.57,0.68294491]
[1734370592768,10.49174544,219.61,219.57,0.68294491]
[1734370592936,10.49174544,219.61,219.56,157.9]
[1734370593139,10.49174544,219.62,219.56,157.9]
[1734370593336,10.49174544,219.63,219.56,157.9]
[1734370593648,10.49174544,219.64,219.57,0.68294274]
[1734370594362,6.4022,219.71,219.57,0.68294274]
[1734370594363,10.49174544,219.65,219.6,20.0]
[1734370594564,10.49174544,219.64,219.6,20.0]
[1734370596567,1.6427,219.73,219.64,20.0]
[1734370596770,10.49174544,219.68,219.64,20.0]
[1734370597266,10.49174544,219.65,219.6,20.0]
[1734370597564,0.12549,219.72,219.6,20.0]
[1734370597739,10.49174544,219.64,219.6,20.0]
[1734370597943,10.49174544,219.63,219.6,20.0]
[1734370599061,10.49174544,219.64,219.6,20.0]
[1734370599783,10.49174544,219.62,219.58,20.0]
[1734370600142,10.49174544,219.63,219.58,20.0]
[1734370600552,10.49174544,219.62,219.58,20.0]
[1734370601271,10.49174544,219.6,219.54,137.9]
[1734370601979,10.49174544,219.59,219.54,137.9]
[1734370602279,10.49174544,219.6,219.54,137.9]
[1734370602647,10.49174544,219.58,219.57,20.0]
[1734370603079,10.49174544,219.59,219.57,20.0]
[1734370603747,10.49174544,219.62,219.57,20.0]
[1734370604248,1.5192,219.65,219.57,20.0]
[1734370604249,10.49174544,219.61,219.57,20.0]
[1734370605778,10.49174544,219.6,219.57,20.0]
[1734370605985,10.49174544,219.59,219.57,20.0]
[1734370606207,1.5192,219.65,219.57,20.0]
[1734370606208,10.49174544,219.58,219.57,20.0]
[1734370607155,10.49174544,219.6,219.57,20.0]
[1734370609286,10.49174544,219.59,219.57,20.0]
[1734370609485,10.49174544,219.58,219.57,20.0]
[1734370610467,10.49174544,219.58,219.54,137.9]
[1734370610809,10.49174544,219.55,219.54,20.0]
[1734370610971,10.49174544,219.55,219.5,143.34137106]
[1734370611314,10.49174544,219.54,219.5,5.44137106]
[1734370611600,10.49174544,219.55,219.5,5.44137106]
[1734370611969,10.49174544,219.56,219.5,5.44137106]
[1734370612170,10.49174544,219.56,219.53,20.0]
[1734370612879,10.49174544,219.58,219.53,20.0]
[1734370613290,10.49174544,219.59,219.53,20.0]
[1734370613471,20.12549,219.64,219.56,20.0]
[1734370613472,0.12549,219.64,219.56,20.0]
[1734370613770,10.49174544,219.59,219.56,20.0]
[1734370614495,10.49174544,219.6,219.54,0.68301998]
[1734370614702,10.49174544,219.59,219.56,20.0]
[1734370615507,10.49174544,219.58,219.56,20.0]
[1734370616605,10.49174544,219.57,219.5,143.34137106]
[1734370616812,10.49174544,219.55,219.5,5.44137106]
[1734370617098,10.49174544,219.55,219.48,143.42964589]
[1734370618077,10.49174544,219.55,219.51,20.0]
[1734370621613,10.49174544,219.56,219.52,20.0]
[1734370622824,23.902374,219.62,219.52,20.0]
[1734370622989,10.49174544,219.56,219.52,20.0]
[1734370623380,23.902374,219.64,219.52,20.0]
[1734370623584,10.49174544,219.56,219.52,20.0]
[1734370624009,10.49174544,219.58,219.52,20.0]
[1734370624197,10.49174544,219.58,219.53,20.0]
[1734370625707,10.49174544,219.57,219.53,20.0]
[1734370627291,10.49174544,219.56,219.53,20.0]
[1734370627488,25.69134503,219.64,219.51,20.0]
[1734370627489,10.49174544,219.55,219.51,20.0]
[1734370627793,10.49174544,219.56,219.51,20.0]
[1734370629794,10.49174544,219.55,219.48,143.42964589]
[1734370630020,10.49174544,219.53,219.48,5.52964589]
[1734370630213,10.49174544,219.53,219.46,139.4408]
[1734370631102,10.49174544,219.54,219.46,139.4408]
[1734370631424,37.68693762,219.64,219.49,20.0]
[1734370631619,10.49174544,219.54,219.49,20.0]
[1734370631819,10.49174544,219.55,219.49,20.0]
[1734370632003,10.49174544,219.56,219.49,20.0]
[1734370633608,10.49174544,219.55,219.49,157.9]
[1734370634826,10.49174544,219.57,219.49,157.9]
[1734370635027,10.49174544,219.55,219.49,157.9]
[1734370635608,10.49174544,219.56,219.49,157.9]
[1734370636730,0.12549,219.63,219.5,0.68316637]
[1734370636913,10.49174544,219.6,219.53,20.0]
[1734370637115,10.49174544,219.6,219.57,20.0]
[1734370638511,1.5192,219.65,219.57,20.0]
[1734370638715,10.49174544,219.6,219.57,20.0]
[1734370639109,10.49174544,219.58,219.57,20.0]
[1734370639332,10.49174544,219.58,219.54,20.0]
[1734370639530,10.49174544,219.57,219.54,20.0]
[1734370639836,10.49174544,219.58,219.54,20.0]
[1734370641336,1.5192,219.65,219.54,157.9]
[1734370641544,23.776884,219.68,219.58,20.0]
[1734370641717,10.49174544,219.63,219.58,20.0]
[1734370641919,10.49174544,219.62,219.58,20.0]
[1734370642107,0.12549,219.68,219.58,20.0]
[1734370642314,10.49174544,219.61,219.58,20.0]
[1734370642523,8.95832975,219.7,219.58,20.0]
[1734370642718,10.49174544,219.61,219.54,21.6403]
[1734370642937,10.49174544,219.59,219.54,21.6403]
[1734370644131,10.49174544,219.59,219.54,20.0]
[1734370644513,10.49174544,219.56,219.54,20.0]
[1734370644822,10.49174544,219.56,219.51,137.9]
[1734370645229,10.49174544,219.55,219.5,5.44137106]
[1734370645422,10.49174544,219.54,219.48,139.4384]
[1734370645624,7.7413,219.63,219.46,149.49044589]
[1734370645625,10.49174544,219.52,219.46,149.49044589]
[1734370645939,10.49174544,219.5,219.45,143.34137106]
[1734370646121,41.96698176,219.56,219.45,5.44137106]
[1734370646328,10.49174544,219.49,219.45,5.44137106]
[1734370646844,10.49174544,219.5,219.45,5.44137106]
[1734370648041,20.0,219.59,219.46,0.68334677]
[1734370648338,10.49174544,219.54,219.46,138.58334677]
[1734370648523,10.49174544,219.54,219.46,137.9]
[1734370648712,10.49174544,219.54,219.47,0.68323745]
[1734370649128,10.49174544,219.54,219.46,137.9]
[1734370649340,10.49174544,219.53,219.46,137.9]
[1734370651140,10.49174544,219.53,219.45,5.44137106]
[1734370651346,10.49174544,219.53,219.48,20.0]
[1734370651937,23.902374,219.59,219.48,20.0]
[1734370652251,10.49174544,219.56,219.48,20.68321584]
[1734370652446,10.49174544,219.54,219.48,20.68321584]
[1734370652623,23.902374,219.61,219.48,20.68321584]
[1734370652624,10.49174544,219.53,219.48,20.0]
[1734370652827,23.902374,219.61,219.48,20.0]
[1734370653167,23.902374,219.61,219.49,20.0]
[1734370653168,10.49174544,219.53,219.49,20.0]
[1734370653523,10.49174544,219.52,219.49,20.0]
[1734370654238,10.49174544,219.52,219.48,20.0]
[1734370654447,10.49174544,219.53,219.48,20.0]
[1734370654727,10.49174544,219.54,219.48,20.0]
[1734370656462,10.49174544,219.53,219.48,20.0]
[1734370656759,10.49174544,219.52,219.45,5.44137106]
[1734370657957,28.902374,219.61,219.42,5.52964589]
[1734370657958,10.49174544,219.48,219.42,5.52964589]
[1734370658828,10.49174544,219.47,219.42,3.53970831]
[1734370659264,0.12549,219.54,219.42,3.53970831]
[1734370659265,10.49174544,219.46,219.42,3.53970831]
[1734370659634,10.49174544,219.45,219.42,3.53970831]
[1734370660267,10.49174544,219.45,219.4,5.3362154]
[1734370660568,5.12549,219.54,219.4,5.3362154]
[1734370660569,10.49174544,219.44,219.4,5.3362154]
[1734370660883,10.49174544,219.45,219.4,5.3362154]
[1734370661757,10.49174544,219.46,219.4,5.3362154]
[1734370662080,10.49174544,219.45,219.4,5.3362154]
[1734370662455,10.49174544,219.44,219.4,5.3362154]
[1734370662671,10.49174544,219.41,219.35,0.68354245]
[1734370662877,10.49174544,219.4,219.33,4.88037262]
[1734370663049,10.49174544,219.39,219.33,5.56407852]
[1734370663249,1.5301,219.45,219.33,5.56407852]
[1734370663447,10.49174544,219.4,219.33,5.56407852]
[1734370664682,10.49174544,219.42,219.34,4.88037262]
[1734370664891,2.67255929,219.51,219.34,4.88037262]
[1734370664892,10.49174544,219.44,219.36,20.0]
[1734370665042,10.49174544,219.45,219.37,20.0]
[1734370665786,10.49174544,219.46,219.37,20.0]
[1734370665958,10.49174544,219.46,219.38,20.0]
[1734370666953,10.49174544,219.46,219.38,24.88037262]
[1734370669184,23.902374,219.49,219.38,24.88037262]
[1734370669382,10.49174544,219.46,219.39,4.88037262]
[1734370670499,10.49174544,219.45,219.39,4.88037262]
[1734370670712,10.49174544,219.46,219.39,4.88037262]
[1734370670870,10.49174544,219.45,219.39,4.88037262]
[1734370671270,10.49174544,219.46,219.39,4.88037262]
[1734370672620,10.49174544,219.45,219.39,4.88037262]
[1734370672992,10.49174544,219.46,219.39,4.88037262]
[1734370673707,10.49174544,219.45,219.39,4.88037262]
[1734370673879,10.49174544,219.44,219.39,4.88037262]
[1734370674078,10.49174544,219.45,219.39,4.88037262]
[1734370674813,23.902374,219.49,219.39,4.88037262]
[1734370675307,10.49174544,219.45,219.39,4.88037262]
[1734370676704,10.49174544,219.47,219.4,20.0]
[1734370677101,10.49174544,219.47,219.41,20.0]
[1734370678318,2.67255929,219.51,219.41,20.0]
[1734370678319,10.49174544,219.48,219.42,20.0]
[1734370678514,10.49174544,219.47,219.42,20.0]
[1734370680405,8.158,219.55,219.42,25.55865984]
[1734370680406,10.49174544,219.5,219.42,25.55865984]
[1734370680987,10.49174544,219.49,219.42,25.55865984]
[1734370681583,10.49174544,219.48,219.42,25.55865984]
[1734370682209,0.12549,219.54,219.42,5.55865984]
[1734370682210,10.49174544,219.46,219.42,5.55865984]
[1734370682393,23.902374,219.54,219.42,5.55865984]
[1734370682592,10.49174544,219.49,219.42,5.55865984]
[1734370682920,10.49174544,219.49,219.42,6.24206414]
[1734370683418,10.49174544,219.48,219.42,6.24206414]
[1734370683618,10.49174544,219.47,219.42,5.55865984]
[1734370683787,10.49174544,219.48,219.42,5.55865984]
[1734370684108,20.0,219.52,219.42,5.55865984]
[1734370684779,10.49174544,219.49,219.42,5.55865984]
[1734370685200,10.49174544,219.48,219.42,5.55865984]
[1734370685804,10.49174544,219.51,219.42,6.24207434]
[1734370686007,10.49174544,219.48,219.42,5.55865984]
[1734370686208,10.49174544,219.47,219.42,5.55865984]
[1734370686517,20.0,219.52,219.42,5.55865984]
[1734370686518,10.49174544,219.48,219.42,5.55865984]
[1734370686888,10.49174544,219.47,219.42,5.55865984]
[1734370687402,10.49174544,219.48,219.42,5.55865984]
[1734370687725,10.49174544,219.49,219.42,5.55865984]
[1734370687887,10.49174544,219.5,219.42,6.24209876]
[1734370689322,10.49174544,219.48,219.42,6.24209876]
[1734370689504,10.49174544,219.47,219.42,5.55865984]
[1734370689815,10.49174544,219.48,219.42,5.55865984]
[1734370690221,10.49174544,219.49,219.42,5.55865984]
[1734370690522,20.0,219.52,219.42,6.24209757]
[1734370690707,10.49174544,219.47,219.42,5.55865984]
[1734370690901,10.49174544,219.49,219.42,5.55865984]
[1734370691101,10.49174544,219.47,219.42,5.55865984]
[1734370691417,10.49174544,219.46,219.42,5.55865984]
[1734370691635,10.49174544,219.44,219.39,4.88037262]
[1734370691931,10.49174544,219.44,219.4,20.0]
[1734370692734,23.902374,219.51,219.29,137.9]
[1734370692735,10.49174544,219.41,219.29,137.9]
[1734370692893,10.49174544,219.39,219.3,0.68370544]
[1734370693097,20.0,219.47,219.3,138.58370544]
[1734370693295,14.96167856,219.5,219.32,7.9789]
[1734370693296,10.49174544,219.46,219.32,7.9789]
[1734370693491,10.49174544,219.47,219.33,0.68351499]
[1734370693905,10.49174544,219.47,219.35,20.0]
[1734370694239,10.49174544,219.47,219.36,0.68349926]
[1734370695629,10.49174544,219.47,219.4,20.0]
[1734370695926,10.49174544,219.46,219.38,0.68348358]
[1734370696104,10.49174544,219.46,219.4,20.0]
[1734370696821,10.49174544,219.43,219.31,137.9]
[1734370697026,10.49174544,219.42,219.35,20.0]
[1734370697216,9.79821299,219.51,219.36,0.68364346]
[1734370697217,10.49174544,219.43,219.36,0.68364346]
[1734370697551,0.12549,219.5,219.36,0.68364346]
[1734370697552,10.49174544,219.44,219.36,0.68364346]
[1734370697903,10.49174544,219.43,219.35,20.0]
[1734370698231,10.49174544,219.43,219.36,20.0]
[1734370698537,10.49174544,219.44,219.36,20.0]
[1734370699818,10.49174544,219.43,219.36,20.0]
[1734370700944,10.49174544,219.4,219.35,20.0]
[1734370701442,10.49174544,219.41,219.32,13.71567901]
[1734370701633,0.12549,219.45,219.32,13.71567901]